[Event "Late-Titled-Tuesday-Blitz-September-19-2023"]
[Site "Chess.com"]
[Date "2023.09.19"]
[Round "6"]
[White "artin10862"]
[Black "chessdjw"]
[Result "1-0"]
[WhiteElo "2921"]
[BlackElo "2670"]
[TimeControl "180+1"]
[EndTime "15:04:15 PDT"]
[Termination "artin10862 won on time"]

1. Nf3 {[%clk 0:03:00.9]} 1... Nf6 {[%clk 0:02:58.4]} 2. c4 {[%clk 0:03:00.1]}
2... b6 {[%clk 0:02:58.1]} 3. Nc3 {[%clk 0:02:57.8]} 3... Bb7 {[%clk 0:02:58.5]}
4. d3 {[%clk 0:02:58]} 4... d5 {[%clk 0:02:49]} 5. cxd5 {[%clk 0:02:41.3]} 5...
Nxd5 {[%clk 0:02:48.5]} 6. Nxd5 {[%clk 0:02:05.5]} 6... Qxd5 {[%clk 0:02:31.4]}
7. e4 {[%clk 0:02:05.3]} 7... Qd6 {[%clk 0:02:25.1]} 8. Qc2 {[%clk 0:01:54.4]}
8... Nc6 {[%clk 0:02:14.9]} 9. d4 {[%clk 0:01:51]} 9... e6 {[%clk 0:02:05.1]}
10. a3 {[%clk 0:01:33.2]} 10... O-O-O {[%clk 0:00:36.2]} 11. Be3 {[%clk
0:01:19.4]} 11... f5 {[%clk 0:00:35.9]} 12. exf5 {[%clk 0:01:07]} 12... exf5
{[%clk 0:00:35.9]} 13. Qxf5+ {[%clk 0:01:06.7]} 13... Kb8 {[%clk 0:00:36.2]} 14.
Be2 {[%clk 0:01:07]} 14... Ne7 {[%clk 0:00:35.1]} 15. Qc2 {[%clk 0:01:01.2]}
15... Nd5 {[%clk 0:00:34.4]} 16. O-O {[%clk 0:01:01]} 16... Be7 {[%clk
0:00:32.5]} 17. Ne5 {[%clk 0:01:00.5]} 17... Bf6 {[%clk 0:00:31.3]} 18. Nf7
{[%clk 0:00:58.1]} 18... Nxe3 {[%clk 0:00:30.5]} 19. fxe3 {[%clk 0:00:41]} 19...
Qe7 {[%clk 0:00:28.3]} 20. Nxd8 {[%clk 0:00:35.7]} 20... Qxe3+ {[%clk
0:00:27.6]} 21. Kh1 {[%clk 0:00:36.4]} 21... Rxd8 {[%clk 0:00:20.4]} 22. Rac1
{[%clk 0:00:36.3]} 22... Rd7 {[%clk 0:00:06.8]} 23. Bb5 {[%clk 0:00:23.8]} 23...
Re7 {[%clk 0:00:06.1]} 24. Bc6 {[%clk 0:00:23.2]} 24... Qxd4 {[%clk 0:00:04.6]}
25. Bxb7 {[%clk 0:00:23.1]} 25... Kxb7 {[%clk 0:00:05.5]} 26. Qc6+ {[%clk
0:00:23.6]} 26... Kb8 {[%clk 0:00:05.3]} 27. Rfd1 {[%clk 0:00:19.1]} 27... Re3
{[%clk 0:00:01.6]} 28. Qxc7+ {[%clk 0:00:13.9]} 1-0

[Event "Late-Titled-Tuesday-Blitz-September-19-2023"]
[Site "Chess.com"]
[Date "2023.09.19"]
[Round "6"]
[White "reevecanada"]
[Black "krzyzan94"]
[Result "0-1"]
[WhiteElo "2520"]
[BlackElo "2801"]
[TimeControl "180+1"]
[EndTime "15:04:15 PDT"]
[Termination "krzyzan94 won by checkmate"]

1. e4 {[%clk 0:02:44.3]} 1... c5 {[%clk 0:02:56.3]} 2. Nf3 {[%clk 0:02:43.3]}
2... Nc6 {[%clk 0:02:51.1]} 3. Bb5 {[%clk 0:02:42.4]} 3... a6 {[%clk 0:02:48.3]}
4. Bxc6 {[%clk 0:02:41.9]} 4... dxc6 {[%clk 0:02:49.2]} 5. O-O {[%clk
0:02:41.4]} 5... Bg4 {[%clk 0:02:44.1]} 6. d3 {[%clk 0:02:39.4]} 6... e5 {[%clk
0:02:38.2]} 7. h3 {[%clk 0:02:33.5]} 7... Bxf3 {[%clk 0:02:37.2]} 8. Qxf3 {[%clk
0:02:34.4]} 8... Bd6 {[%clk 0:02:36.9]} 9. Qg3 {[%clk 0:02:33.4]} 9... Qf6
{[%clk 0:02:23.3]} 10. Nc3 {[%clk 0:02:32.1]} 10... Ne7 {[%clk 0:02:21.1]} 11.
Na4 {[%clk 0:02:28.8]} 11... Ng6 {[%clk 0:02:01.4]} 12. Be3 {[%clk 0:02:20.2]}
12... Qe7 {[%clk 0:01:59.5]} 13. h4 {[%clk 0:02:15.6]} 13... b5 {[%clk
0:01:49.8]} 14. h5 {[%clk 0:02:08.9]} 14... bxa4 {[%clk 0:01:48.2]} 15. hxg6
{[%clk 0:02:09]} 15... hxg6 {[%clk 0:01:49.1]} 16. Rfb1 {[%clk 0:02:05.2]} 16...
Rh5 {[%clk 0:01:41.8]} 17. b3 {[%clk 0:01:57.9]} 17... a3 {[%clk 0:01:41.6]} 18.
Kf1 {[%clk 0:01:53.8]} 18... Qe6 {[%clk 0:01:37.1]} 19. Ke2 {[%clk 0:01:46]}
19... Kd7 {[%clk 0:01:35.2]} 20. Bc1 {[%clk 0:01:45.1]} 20... f5 {[%clk
0:01:33.4]} 21. Bxa3 {[%clk 0:01:43.7]} 21... f4 {[%clk 0:01:30.4]} 22. Qf3
{[%clk 0:01:43.3]} 22... Rah8 {[%clk 0:01:29.5]} 23. g3 {[%clk 0:01:34.8]} 23...
g5 {[%clk 0:01:24.6]} 24. gxf4 {[%clk 0:01:05.9]} 24... exf4 {[%clk 0:01:20.5]}
25. Rg1 {[%clk 0:01:03.7]} 25... Rh3 {[%clk 0:01:01.8]} 26. Qg4 {[%clk
0:00:59.9]} 26... f3+ {[%clk 0:01:01.6]} 27. Kd2 {[%clk 0:00:58.6]} 27... Bf4+
{[%clk 0:01:02.2]} 28. Qxf4 {[%clk 0:00:27.9]} 28... gxf4 {[%clk 0:00:59.2]} 29.
Rxg7+ {[%clk 0:00:28.2]} 29... Kc8 {[%clk 0:00:52.9]} 30. Rag1 {[%clk
0:00:26.3]} 30... R3h5 {[%clk 0:00:25.3]} 31. R1g6 {[%clk 0:00:25.6]} 31... Qe8
{[%clk 0:00:21.9]} 32. Ra7 {[%clk 0:00:22.8]} 32... Qxg6 {[%clk 0:00:20.3]} 33.
b4 {[%clk 0:00:21.6]} 33... Rh2 {[%clk 0:00:18.6]} 34. bxc5 {[%clk 0:00:20.1]}
34... Rxf2+ {[%clk 0:00:18.8]} 35. Kc3 {[%clk 0:00:20.6]} 35... Qf6+ {[%clk
0:00:17]} 36. d4 {[%clk 0:00:20.5]} 36... Rhh2 {[%clk 0:00:15.2]} 37. e5 {[%clk
0:00:20.8]} 37... Rxc2+ {[%clk 0:00:15.4]} 38. Kb4 {[%clk 0:00:21.1]} 38... Qe6
{[%clk 0:00:14.5]} 39. Ka5 {[%clk 0:00:21.6]} 39... Qc4 {[%clk 0:00:13.1]} 40.
Kb6 {[%clk 0:00:22.1]} 40... Qb5# {[%clk 0:00:13.3]} 0-1

[Event "Late-Titled-Tuesday-Blitz-September-19-2023"]
[Site "Chess.com"]
[Date "2023.09.19"]
[Round "6"]
[White "MergenKakabaev"]
[Black "Aariow"]
[Result "0-1"]
[WhiteElo "2649"]
[BlackElo "2572"]
[TimeControl "180+1"]
[EndTime "15:04:16 PDT"]
[Termination "Aariow won by checkmate"]

1. e4 {[%clk 0:03:00.9]} 1... c5 {[%clk 0:03:00.2]} 2. Nf3 {[%clk 0:03:00.9]}
2... Nc6 {[%clk 0:03:00.9]} 3. Bb5 {[%clk 0:03:00.3]} 3... g6 {[%clk 0:03:01.4]}
4. Bxc6 {[%clk 0:03:00.1]} 4... dxc6 {[%clk 0:03:02.3]} 5. h3 {[%clk 0:03:00.6]}
5... Bg7 {[%clk 0:03:03]} 6. d3 {[%clk 0:03:01.2]} 6... e5 {[%clk 0:03:03.4]} 7.
Nc3 {[%clk 0:03:01.4]} 7... b6 {[%clk 0:03:00]} 8. Be3 {[%clk 0:03:01.9]} 8...
f6 {[%clk 0:03:00]} 9. Qd2 {[%clk 0:03:02.6]} 9... Ne7 {[%clk 0:02:59.2]} 10. a3
{[%clk 0:03:03.3]} 10... O-O {[%clk 0:02:59.3]} 11. b4 {[%clk 0:03:03.5]} 11...
cxb4 {[%clk 0:02:58.1]} 12. axb4 {[%clk 0:03:04.4]} 12... f5 {[%clk 0:02:56.2]}
13. Qc1 {[%clk 0:03:02.1]} 13... f4 {[%clk 0:02:55.1]} 14. Bd2 {[%clk
0:03:02.4]} 14... Qd6 {[%clk 0:02:44.2]} 15. Ne2 {[%clk 0:03:00.8]} 15... Bf6
{[%clk 0:02:31.3]} 16. Qb2 {[%clk 0:02:59.8]} 16... g5 {[%clk 0:02:30.5]} 17.
Bc3 {[%clk 0:02:58.5]} 17... Ng6 {[%clk 0:02:29.8]} 18. g4 {[%clk 0:01:56.4]}
18... fxg3 {[%clk 0:02:20.2]} 19. fxg3 {[%clk 0:01:55.9]} 19... g4 {[%clk
0:02:15.9]} 20. hxg4 {[%clk 0:01:53.8]} 20... Bxg4 {[%clk 0:02:16.1]} 21. Rf1
{[%clk 0:01:53.4]} 21... Bg7 {[%clk 0:02:10]} 22. Nd2 {[%clk 0:01:51.1]} 22...
Rxf1+ {[%clk 0:02:00.6]} 23. Nxf1 {[%clk 0:01:51]} 23... Qd7 {[%clk 0:01:35.5]}
24. Ne3 {[%clk 0:01:50]} 24... Rf8 {[%clk 0:00:56.4]} 25. Nxg4 {[%clk
0:01:34.7]} 25... Qxg4 {[%clk 0:00:56]} 26. Rxa7 {[%clk 0:01:35.3]} 26... Qf3
{[%clk 0:00:43.6]} 27. Qa2+ {[%clk 0:01:26.1]} 27... Kh8 {[%clk 0:00:40.1]} 28.
Kd1 {[%clk 0:01:25.8]} 28... Qh1+ {[%clk 0:00:34.4]} 29. Be1 {[%clk 0:01:25]}
29... Rf1 {[%clk 0:00:34.5]} 30. Ra8+ {[%clk 0:01:19.8]} 30... Nf8 {[%clk
0:00:34.1]} 31. Kd2 {[%clk 0:01:16.7]} 31... Rxe1 {[%clk 0:00:31.7]} 32. Qf7
{[%clk 0:01:14.4]} 32... Rf1 {[%clk 0:00:20.5]} 33. Nf4 {[%clk 0:01:14.1]} 33...
Rf2+ {[%clk 0:00:12.8]} 34. Kc3 {[%clk 0:01:00.9]} 34... exf4+ {[%clk
0:00:13.1]} 35. e5 {[%clk 0:00:54.3]} 35... fxg3 {[%clk 0:00:13.5]} 36. Qe7
{[%clk 0:00:50.3]} 36... Qe1+ {[%clk 0:00:13.6]} 37. Kb2 {[%clk 0:00:49.4]}
37... Qxe5+ {[%clk 0:00:12.7]} 38. Qxe5 {[%clk 0:00:49.7]} 38... Bxe5+ {[%clk
0:00:13.5]} 39. Kb3 {[%clk 0:00:50.1]} 39... g2 {[%clk 0:00:13.7]} 40. Re8
{[%clk 0:00:49.2]} 40... Bg7 {[%clk 0:00:11.8]} 41. Rc8 {[%clk 0:00:46.8]} 41...
g1=Q {[%clk 0:00:11.6]} 42. Rxc6 {[%clk 0:00:47.6]} 42... Qb1+ {[%clk
0:00:11.9]} 43. Ka4 {[%clk 0:00:47.3]} 43... Rxc2 {[%clk 0:00:10.6]} 44. Rxb6
{[%clk 0:00:46.7]} 44... Ra2+ {[%clk 0:00:10.6]} 45. Kb5 {[%clk 0:00:47.2]}
45... Qxd3+ {[%clk 0:00:11.2]} 46. Kc6 {[%clk 0:00:47.3]} 46... Qd7+ {[%clk
0:00:10.1]} 47. Kc5 {[%clk 0:00:47.2]} 47... Rc2# {[%clk 0:00:10.4]} 0-1

[Event "Late-Titled-Tuesday-Blitz-September-19-2023"]
[Site "Chess.com"]
[Date "2023.09.19"]
[Round "6"]
[White "jk13"]
[Black "angryspacevoid"]
[Result "0-1"]
[WhiteElo "2628"]
[BlackElo "2515"]
[TimeControl "180+1"]
[EndTime "15:04:24 PDT"]
[Termination "angryspacevoid won on time"]

1. e4 {[%clk 0:03:00.9]} 1... e5 {[%clk 0:02:57.2]} 2. Nf3 {[%clk 0:03:00.8]}
2... Nc6 {[%clk 0:02:57.8]} 3. Bc4 {[%clk 0:03:00.1]} 3... Bc5 {[%clk
0:02:52.4]} 4. c3 {[%clk 0:03:00.2]} 4... Nf6 {[%clk 0:02:52.5]} 5. d3 {[%clk
0:03:01]} 5... O-O {[%clk 0:02:49.3]} 6. O-O {[%clk 0:03:00.4]} 6... d5 {[%clk
0:02:48.9]} 7. exd5 {[%clk 0:03:01.3]} 7... Nxd5 {[%clk 0:02:49.3]} 8. Re1
{[%clk 0:03:00.7]} 8... Be6 {[%clk 0:02:48]} 9. Nbd2 {[%clk 0:02:33.9]} 9... Re8
{[%clk 0:02:44.1]} 10. Ne4 {[%clk 0:02:29.3]} 10... Bb6 {[%clk 0:02:43.7]} 11.
h3 {[%clk 0:02:17.1]} 11... f6 {[%clk 0:02:38.1]} 12. a4 {[%clk 0:02:11.9]}
12... Qd7 {[%clk 0:02:17.3]} 13. b4 {[%clk 0:01:50.8]} 13... a6 {[%clk
0:02:15.9]} 14. Qb3 {[%clk 0:01:48.2]} 14... Rad8 {[%clk 0:02:10.6]} 15. Bd2
{[%clk 0:01:40.7]} 15... Kh8 {[%clk 0:02:07.5]} 16. Rad1 {[%clk 0:01:40.2]}
16... Rf8 {[%clk 0:01:31.8]} 17. Qb1 {[%clk 0:01:14.6]} 17... Bxh3 {[%clk
0:01:15.8]} 18. Nh2 {[%clk 0:00:34]} 18... Bf5 {[%clk 0:01:05]} 19. Qc2 {[%clk
0:00:22.6]} 19... Ba7 {[%clk 0:00:59.8]} 20. Bc1 {[%clk 0:00:21.4]} 20... Qf7
{[%clk 0:00:50.6]} 21. Ng3 {[%clk 0:00:19.3]} 21... Be6 {[%clk 0:00:46.9]} 22.
Nf3 {[%clk 0:00:17]} 22... Qg6 {[%clk 0:00:46.6]} 23. Kf1 {[%clk 0:00:11]} 23...
Ne3+ {[%clk 0:00:19.2]} 24. Bxe3 {[%clk 0:00:08.8]} 24... Bxc4 {[%clk
0:00:19.9]} 25. Ne4 {[%clk 0:00:05.4]} 25... Qxe4 {[%clk 0:00:18]} 26. Bxa7
{[%clk 0:00:03.5]} 26... Rxd3 {[%clk 0:00:12.4]} 27. Kg1 {[%clk 0:00:02.1]}
27... Qg6 {[%clk 0:00:07.4]} 28. Bc5 {[%clk 0:00:01.7]} 28... Rfd8 {[%clk
0:00:06.5]} 29. Rxd3 {[%clk 0:00:02.3]} 29... Rxd3 {[%clk 0:00:05.8]} 30. Nd2
{[%clk 0:00:01.6]} 30... Be6 {[%clk 0:00:03.9]} 31. Ne4 {[%clk 0:00:01.2]} 31...
Bf5 {[%clk 0:00:04.2]} 0-1

[Event "Late-Titled-Tuesday-Blitz-September-19-2023"]
[Site "Chess.com"]
[Date "2023.09.19"]
[Round "6"]
[White "gabduschew"]
[Black "Dewarfd"]
[Result "1-0"]
[WhiteElo "2360"]
[BlackElo "2196"]
[TimeControl "180+1"]
[EndTime "15:04:26 PDT"]
[Termination "gabduschew won by resignation"]

1. g3 {[%clk 0:02:58.6]} 1... d5 {[%clk 0:02:59]} 2. Bg2 {[%clk 0:02:58.2]} 2...
e6 {[%clk 0:02:59.3]} 3. d3 {[%clk 0:02:57.3]} 3... c5 {[%clk 0:02:59.7]} 4. c4
{[%clk 0:02:54.7]} 4... Nf6 {[%clk 0:02:58.8]} 5. Bg5 {[%clk 0:02:53.4]} 5...
Be7 {[%clk 0:02:58.4]} 6. Nc3 {[%clk 0:02:46.4]} 6... d4 {[%clk 0:02:50]} 7.
Bxf6 {[%clk 0:02:45.4]} 7... Bxf6 {[%clk 0:02:46.3]} 8. Ne4 {[%clk 0:02:45.5]}
8... O-O {[%clk 0:02:44.3]} 9. Nf3 {[%clk 0:02:43.4]} 9... Nc6 {[%clk
0:02:40.2]} 10. Nxf6+ {[%clk 0:02:37.9]} 10... Qxf6 {[%clk 0:02:40]} 11. O-O
{[%clk 0:02:37.5]} 11... a5 {[%clk 0:02:38.5]} 12. Nd2 {[%clk 0:02:36.5]} 12...
Qe7 {[%clk 0:02:33.8]} 13. Bxc6 {[%clk 0:02:31.4]} 13... bxc6 {[%clk 0:02:33.5]}
14. Qa4 {[%clk 0:02:31.2]} 14... Bd7 {[%clk 0:02:30.6]} 15. Qa3 {[%clk 0:02:30]}
15... a4 {[%clk 0:02:16.8]} 16. b3 {[%clk 0:02:17.8]} 16... axb3 {[%clk
0:02:15.2]} 17. Qxb3 {[%clk 0:02:17.5]} 17... Rfb8 {[%clk 0:02:14.3]} 18. Qc2
{[%clk 0:02:17.7]} 18... f5 {[%clk 0:02:11.5]} 19. a4 {[%clk 0:02:13.1]} 19...
e5 {[%clk 0:02:06.4]} 20. Rfb1 {[%clk 0:02:07.5]} 20... f4 {[%clk 0:02:04.6]}
21. Rxb8+ {[%clk 0:01:58.4]} 21... Rxb8 {[%clk 0:02:04.4]} 22. Rb1 {[%clk
0:01:58.7]} 22... Ra8 {[%clk 0:01:59.8]} 23. Rb7 {[%clk 0:01:56.9]} 23... Qe8
{[%clk 0:01:59.1]} 24. Ne4 {[%clk 0:01:50.8]} 24... Ra5 {[%clk 0:01:40.4]} 25.
Qb3 {[%clk 0:01:46.3]} 25... h6 {[%clk 0:01:22.8]} 26. Rb8 {[%clk 0:01:43.8]}
26... Bc8 {[%clk 0:01:23.3]} 27. Nd6 {[%clk 0:01:39.5]} 27... Qd7 {[%clk
0:01:14.3]} 28. Nxc8 {[%clk 0:01:32.7]} 28... Kh7 {[%clk 0:01:11.5]} 29. Kg2
{[%clk 0:01:23.8]} 29... Qg4 {[%clk 0:01:08.7]} 30. f3 {[%clk 0:01:18.5]} 30...
Qg5 {[%clk 0:01:03.7]} 31. Nd6 {[%clk 0:01:15]} 31... fxg3 {[%clk 0:00:41.3]}
32. hxg3 {[%clk 0:01:13.3]} 32... Qe3 {[%clk 0:00:39.2]} 33. Ne4 {[%clk
0:00:59.5]} 33... Qxe2+ {[%clk 0:00:38.4]} 34. Nf2 {[%clk 0:00:59.1]} 34... Ra7
{[%clk 0:00:36.1]} 35. Qb6 {[%clk 0:00:52.4]} 35... Rf7 {[%clk 0:00:35.9]} 36.
Qxc6 {[%clk 0:00:51.9]} 36... h5 {[%clk 0:00:18.5]} 37. Qe4+ {[%clk 0:00:49.2]}
37... Qxe4 {[%clk 0:00:18.8]} 38. Nxe4 {[%clk 0:00:48.7]} 38... Ra7 {[%clk
0:00:19.7]} 39. Nxc5 {[%clk 0:00:47.4]} 39... Ra5 {[%clk 0:00:20.1]} 40. Rb5
{[%clk 0:00:46.6]} 40... Ra7 {[%clk 0:00:19.7]} 41. a5 {[%clk 0:00:45.5]} 41...
g5 {[%clk 0:00:19]} 42. a6 {[%clk 0:00:44.4]} 42... g4 {[%clk 0:00:19]} 43. Rb7+
{[%clk 0:00:43.7]} 1-0

[Event "Late-Titled-Tuesday-Blitz-September-19-2023"]
[Site "Chess.com"]
[Date "2023.09.19"]
[Round "6"]
[White "expii"]
[Black "Road2GM3000"]
[Result "0-1"]
[WhiteElo "2268"]
[BlackElo "2482"]
[TimeControl "180+1"]
[EndTime "15:04:28 PDT"]
[Termination "Road2GM3000 won by resignation"]

1. e4 {[%clk 0:02:58.7]} 1... c5 {[%clk 0:02:59.4]} 2. Nf3 {[%clk 0:02:54.8]}
2... d6 {[%clk 0:02:57.8]} 3. d4 {[%clk 0:02:55.4]} 3... cxd4 {[%clk 0:02:58.1]}
4. Nxd4 {[%clk 0:02:56.3]} 4... Nf6 {[%clk 0:02:58.3]} 5. Nc3 {[%clk 0:02:56.5]}
5... a6 {[%clk 0:02:58.5]} 6. g3 {[%clk 0:02:55.2]} 6... e6 {[%clk 0:02:58.5]}
7. Bg2 {[%clk 0:02:52.7]} 7... Be7 {[%clk 0:02:58.7]} 8. O-O {[%clk 0:02:48.6]}
8... O-O {[%clk 0:02:59.4]} 9. h3 {[%clk 0:02:47.8]} 9... Nbd7 {[%clk
0:02:59.6]} 10. Be3 {[%clk 0:02:46.2]} 10... Qc7 {[%clk 0:02:59.8]} 11. f4
{[%clk 0:02:42.9]} 11... Rb8 {[%clk 0:02:49.8]} 12. a4 {[%clk 0:02:36.5]} 12...
b6 {[%clk 0:02:48.7]} 13. g4 {[%clk 0:02:31.6]} 13... Bb7 {[%clk 0:02:48.6]} 14.
g5 {[%clk 0:02:19]} 14... Ne8 {[%clk 0:02:47.8]} 15. Nde2 {[%clk 0:02:07]} 15...
Nc5 {[%clk 0:02:46.9]} 16. Ng3 {[%clk 0:02:06.1]} 16... Rd8 {[%clk 0:02:39.9]}
17. f5 {[%clk 0:02:04.4]} 17... e5 {[%clk 0:02:35.5]} 18. h4 {[%clk 0:02:00.7]}
18... Nd7 {[%clk 0:01:45.9]} 19. h5 {[%clk 0:01:51.8]} 19... d5 {[%clk
0:01:42.8]} 20. Nxd5 {[%clk 0:01:48.8]} 20... Bxd5 {[%clk 0:01:41.9]} 21. exd5
{[%clk 0:01:49.7]} 21... Bc5 {[%clk 0:01:41.8]} 22. Bxc5 {[%clk 0:01:33.7]}
22... Qxc5+ {[%clk 0:01:41.8]} 23. Kh2 {[%clk 0:01:29.6]} 23... f6 {[%clk
0:01:36.3]} 24. g6 {[%clk 0:01:27.2]} 24... h6 {[%clk 0:01:36]} 25. Ne4 {[%clk
0:01:22.1]} 25... Qb4 {[%clk 0:01:30.6]} 26. b3 {[%clk 0:01:08.6]} 26... Nc5
{[%clk 0:01:16.5]} 27. Nxc5 {[%clk 0:01:05.1]} 27... bxc5 {[%clk 0:01:04.4]} 28.
c4 {[%clk 0:00:58.7]} 28... Nd6 {[%clk 0:01:01.5]} 29. Rb1 {[%clk 0:00:55.2]}
29... Rb8 {[%clk 0:00:57.3]} 30. Qe1 {[%clk 0:00:53.6]} 30... a5 {[%clk
0:00:54]} 31. Bf3 {[%clk 0:00:46.2]} 31... Qxe1 {[%clk 0:00:44.9]} 32. Rfxe1
{[%clk 0:00:45]} 32... Nxf5 {[%clk 0:00:45.5]} 33. Bg4 {[%clk 0:00:42.6]} 33...
Nd4 {[%clk 0:00:42.3]} 34. Re3 {[%clk 0:00:35.2]} 34... Rfd8 {[%clk 0:00:40]}
35. Bf3 {[%clk 0:00:21.9]} 35... Rd6 {[%clk 0:00:38.3]} 36. Bg4 {[%clk
0:00:18.1]} 36... Rb4 {[%clk 0:00:37.7]} 37. Bd1 {[%clk 0:00:17.7]} 37... Kf8
{[%clk 0:00:37.8]} 38. Rc1 {[%clk 0:00:14.3]} 38... Rdb6 {[%clk 0:00:36.7]} 39.
Rcc3 {[%clk 0:00:14.2]} 39... Ke7 {[%clk 0:00:36.9]} 40. Rcd3 {[%clk 0:00:14.1]}
40... Kd6 {[%clk 0:00:37]} 41. Kg2 {[%clk 0:00:12.4]} 41... Rb8 {[%clk
0:00:33.4]} 42. Kf2 {[%clk 0:00:12.6]} 42... Rf8 {[%clk 0:00:33.5]} 43. Rg3
{[%clk 0:00:12.3]} 43... f5 {[%clk 0:00:33.3]} 44. Rc3 {[%clk 0:00:11.6]} 44...
f4 {[%clk 0:00:32]} 45. Rh3 {[%clk 0:00:09.9]} 45... e4 {[%clk 0:00:31.9]} 46.
Bg4 {[%clk 0:00:09.9]} 46... e3+ {[%clk 0:00:31.9]} 47. Ke1 {[%clk 0:00:10]}
47... Rxb3 {[%clk 0:00:28.7]} 0-1

[Event "Late-Titled-Tuesday-Blitz-September-19-2023"]
[Site "Chess.com"]
[Date "2023.09.19"]
[Round "6"]
[White "UGgm_Manuel"]
[Black "WindWhistler11"]
[Result "0-1"]
[WhiteElo "2310"]
[BlackElo "2483"]
[TimeControl "180+1"]
[EndTime "15:04:34 PDT"]
[Termination "WindWhistler11 won by resignation"]

1. e4 {[%clk 0:02:44.8]} 1... e6 {[%clk 0:02:59.1]} 2. d4 {[%clk 0:02:42.9]}
2... d5 {[%clk 0:02:58.8]} 3. exd5 {[%clk 0:02:43.8]} 3... exd5 {[%clk
0:02:58.7]} 4. Nc3 {[%clk 0:02:44.3]} 4... Nc6 {[%clk 0:02:58.6]} 5. Nf3 {[%clk
0:02:44.2]} 5... Bg4 {[%clk 0:02:57.2]} 6. Be2 {[%clk 0:02:40]} 6... Bd6 {[%clk
0:02:57.1]} 7. O-O {[%clk 0:02:39.5]} 7... Nge7 {[%clk 0:02:56.4]} 8. Bg5 {[%clk
0:02:39.3]} 8... f6 {[%clk 0:02:56.3]} 9. Bh4 {[%clk 0:02:37.7]} 9... g5 {[%clk
0:02:47.8]} 10. Bg3 {[%clk 0:02:36.5]} 10... h5 {[%clk 0:02:48.5]} 11. h3 {[%clk
0:02:32.1]} 11... Bf5 {[%clk 0:02:43.9]} 12. Re1 {[%clk 0:02:23.1]} 12... Bxg3
{[%clk 0:02:34.9]} 13. fxg3 {[%clk 0:02:21.4]} 13... Qd6 {[%clk 0:02:35.2]} 14.
Bb5 {[%clk 0:02:11.8]} 14... O-O-O {[%clk 0:02:32]} 15. Ne2 {[%clk 0:01:57.4]}
15... g4 {[%clk 0:02:17.4]} 16. hxg4 {[%clk 0:01:54.2]} 16... Bxg4 {[%clk
0:02:13.5]} 17. Nh4 {[%clk 0:01:44.7]} 17... Bxe2 {[%clk 0:02:08.1]} 18. Qxe2
{[%clk 0:01:31.7]} 18... Qxg3 {[%clk 0:02:04.6]} 19. Qf2 {[%clk 0:01:27]} 19...
Qxf2+ {[%clk 0:01:48.1]} 20. Kxf2 {[%clk 0:01:27.9]} 20... Nxd4 {[%clk
0:01:47.6]} 21. Rxe7 {[%clk 0:01:18.3]} 21... Nxb5 {[%clk 0:01:47.2]} 22. Rae1
{[%clk 0:01:08.2]} 22... Nd6 {[%clk 0:01:38.5]} 23. Ng6 {[%clk 0:00:59.6]} 23...
Rhg8 {[%clk 0:01:34.6]} 24. Nf4 {[%clk 0:00:58.5]} 24... Ne4+ {[%clk 0:01:26.8]}
25. Kg1 {[%clk 0:00:54]} 25... Ng5 {[%clk 0:01:23.9]} 26. Kf1 {[%clk 0:00:46.3]}
26... h4 {[%clk 0:01:03.1]} 27. Rd1 {[%clk 0:00:37.1]} 27... c6 {[%clk
0:00:57.3]} 28. Rd3 {[%clk 0:00:36.7]} 28... Rde8 {[%clk 0:00:52]} 29. Rde3
{[%clk 0:00:36.2]} 29... Ne4 {[%clk 0:00:49]} 30. Rxe8+ {[%clk 0:00:34.3]} 30...
Rxe8 {[%clk 0:00:48.4]} 31. Rh3 {[%clk 0:00:32.9]} 31... Ng3+ {[%clk 0:00:42.2]}
32. Kf2 {[%clk 0:00:31.9]} 32... Nf5 {[%clk 0:00:34.2]} 33. Ng6 {[%clk
0:00:27.5]} 33... Re4 {[%clk 0:00:33.8]} 34. Kf3 {[%clk 0:00:22.2]} 34... Kc7
{[%clk 0:00:26.1]} 35. Nf4 {[%clk 0:00:22.2]} 35... Kd6 {[%clk 0:00:24.8]} 36.
Kg4 {[%clk 0:00:22.5]} 36... Ne3+ {[%clk 0:00:23.4]} 37. Kf3 {[%clk 0:00:20.7]}
37... Nxc2 {[%clk 0:00:22.3]} 38. Rxh4 {[%clk 0:00:19.9]} 38... Nd4+ {[%clk
0:00:22.9]} 39. Kg3 {[%clk 0:00:19.3]} 39... Nf5+ {[%clk 0:00:23]} 0-1

[Event "Late-Titled-Tuesday-Blitz-September-19-2023"]
[Site "Chess.com"]
[Date "2023.09.19"]
[Round "6"]
[White "AlexOstrovskiy"]
[Black "Deeper44"]
[Result "0-1"]
[WhiteElo "2640"]
[BlackElo "2535"]
[TimeControl "180+1"]
[EndTime "15:04:38 PDT"]
[Termination "Deeper44 won on time"]

1. d4 {[%clk 0:03:00.9]} 1... Nf6 {[%clk 0:02:59.5]} 2. Bg5 {[%clk 0:02:59.8]}
2... e6 {[%clk 0:02:57.7]} 3. Nd2 {[%clk 0:02:59.6]} 3... d5 {[%clk 0:02:55.5]}
4. e3 {[%clk 0:02:59.7]} 4... h6 {[%clk 0:02:54.2]} 5. Bh4 {[%clk 0:02:56.9]}
5... Bd6 {[%clk 0:02:54.5]} 6. Bd3 {[%clk 0:02:54]} 6... Nbd7 {[%clk 0:02:52.7]}
7. Ngf3 {[%clk 0:02:52.3]} 7... Qe7 {[%clk 0:02:52.5]} 8. e4 {[%clk 0:02:51]}
8... dxe4 {[%clk 0:02:49.8]} 9. Nxe4 {[%clk 0:02:51.9]} 9... g5 {[%clk
0:02:41.4]} 10. Nxd6+ {[%clk 0:02:45.6]} 10... Qxd6 {[%clk 0:02:26.9]} 11. Bg3
{[%clk 0:02:46.5]} 11... Qb4+ {[%clk 0:02:26.8]} 12. Qd2 {[%clk 0:02:38.3]}
12... Qxd2+ {[%clk 0:02:19.5]} 13. Kxd2 {[%clk 0:02:37.3]} 13... c5 {[%clk
0:02:20.4]} 14. Rhe1 {[%clk 0:02:14.3]} 14... cxd4 {[%clk 0:02:17.4]} 15. Nxd4
{[%clk 0:02:14]} 15... O-O {[%clk 0:02:16.4]} 16. Rad1 {[%clk 0:02:04.6]} 16...
Nc5 {[%clk 0:02:14.7]} 17. Kc1 {[%clk 0:01:31.8]} 17... Nxd3+ {[%clk 0:02:13.7]}
18. Rxd3 {[%clk 0:01:32.7]} 18... Rd8 {[%clk 0:02:13.5]} 19. Be5 {[%clk
0:01:31.4]} 19... Ng4 {[%clk 0:02:10.7]} 20. Bc7 {[%clk 0:01:29]} 20... Rd7
{[%clk 0:02:06.4]} 21. Bg3 {[%clk 0:01:28.9]} 21... b6 {[%clk 0:01:56.7]} 22. f3
{[%clk 0:01:26.3]} 22... Nf6 {[%clk 0:01:45.9]} 23. h4 {[%clk 0:01:20.1]} 23...
Ba6 {[%clk 0:01:42.3]} 24. Rd2 {[%clk 0:01:15.7]} 24... Rad8 {[%clk 0:01:41.6]}
25. c3 {[%clk 0:01:08.2]} 25... Nh5 {[%clk 0:01:41.3]} 26. Bh2 {[%clk
0:00:57.8]} 26... gxh4 {[%clk 0:01:39.9]} 27. Re4 {[%clk 0:00:56.1]} 27... Ng3
{[%clk 0:01:19.2]} 28. Bxg3 {[%clk 0:00:28.9]} 28... hxg3 {[%clk 0:01:18.6]} 29.
Rg4+ {[%clk 0:00:29.3]} 29... Kf8 {[%clk 0:01:04.7]} 30. Rxg3 {[%clk 0:00:30.2]}
30... e5 {[%clk 0:01:04.3]} 31. Nb3 {[%clk 0:00:29.8]} 31... Rxd2 {[%clk
0:01:01.7]} 32. Nxd2 {[%clk 0:00:30.7]} 32... Bd3 {[%clk 0:00:59.4]} 33. Rh3
{[%clk 0:00:23.9]} 33... Kg7 {[%clk 0:00:56.4]} 34. g4 {[%clk 0:00:08.7]} 34...
f5 {[%clk 0:00:52.2]} 35. gxf5 {[%clk 0:00:07.5]} 35... Bxf5 {[%clk 0:00:52.9]}
36. Rg3+ {[%clk 0:00:08.2]} 36... Kf6 {[%clk 0:00:52.4]} 37. Nc4 {[%clk
0:00:07.1]} 37... Rd3 {[%clk 0:00:46.8]} 38. Nd2 {[%clk 0:00:03.8]} 38... e4
{[%clk 0:00:42]} 39. Rg8 {[%clk 0:00:02.8]} 39... e3 {[%clk 0:00:28]} 40. Ne4+
{[%clk 0:00:02.2]} 40... Bxe4 {[%clk 0:00:24.6]} 41. fxe4 {[%clk 0:00:03.1]}
41... Ke5 {[%clk 0:00:20.8]} 0-1